bitfinex-derivatives/quotes_BTCF0:USTF0_20250309
["timestamp","ask_amount","ask_price","bid_price","bid_amount"]
[1741538238479,0.00018102,82886.0,82877.0,0.1206772]
[1741538238480,0.1810287,82878.0,82877.0,0.1206772]
[1741538238675,0.1206897,82872.0,82871.0,0.1719445]
[1741538239480,0.1077,82884.0,82871.0,0.1116]
[1741538239776,0.1077,82884.0,82883.0,0.1206737]
[1741538240182,0.01132194,82907.0,82882.0,0.1206737]
[1741538240481,2e-08,82886.0,82885.0,0.4814708]
[1741538241572,2e-08,82886.0,82885.0,0.6314708]
[1741538241770,2e-08,82886.0,82885.0,0.4814708]
[1741538241975,2e-08,82886.0,82885.0,0.5997108]
[1741538242175,0.12066932,82886.0,82885.0,0.5997108]
[1741538242376,0.12066932,82886.0,82885.0,0.3608]
[1741538242584,0.12066932,82886.0,82885.0,0.11844]
[1741538242881,2e-08,82886.0,82885.0,0.2391108]
[1741538243081,2e-08,82886.0,82885.0,0.11844]
[1741538243279,0.0603373,82883.0,82878.0,0.42114]
[1741538243584,0.12067222,82886.0,82885.0,0.1206708]
[1741538243776,2e-08,82886.0,82885.0,0.1206708]
[1741538243972,0.2248494,82901.0,82900.0,0.1206489]
[1741538244178,0.1206533,82897.0,82896.0,0.0603266]
[1741538244585,0.00181025,82902.0,82901.0,0.1206475]
[1741538245491,0.0603257,82899.0,82898.0,0.0603253]
[1741538245691,0.00181025,82902.0,82901.0,0.1206475]
[1741538245895,0.12245625,82902.0,82901.0,0.1206475]
[1741538246087,0.00181025,82902.0,82901.0,0.1206475]
[1741538246287,0.12245625,82902.0,82901.0,0.3295475]
[1741538246589,0.1194,82929.0,82901.0,0.107]
[1741538246791,0.00180952,82934.0,82933.0,0.1206009]
[1741538246983,0.00180952,82934.0,82924.0,0.3608]
[1741538246984,0.00180952,82934.0,82925.0,0.1194]
[1741538247286,0.00180952,82934.0,82933.0,0.1206009]
[1741538247484,0.1205472,82970.0,82951.0,0.0602867]
[1741538247682,0.1205747,82951.0,82950.0,0.11956]
[1741538247883,0.1205835,82945.0,82944.0,0.3608]
[1741538248079,0.48044,82958.0,82942.0,0.3608]
[1741538248283,0.1206082,82928.0,82927.0,0.3608]
[1741538248584,0.0602987,82936.0,82923.0,0.11964]
[1741538248784,0.0602987,82936.0,82931.0,0.1206]
[1741538248785,0.1809075,82932.0,82931.0,0.1206]
[1741538249192,0.0603019,82931.0,82919.0,0.00018091]
[1741538249497,0.1206198,82920.0,82919.0,0.00018091]
[1741538249899,0.11956,82921.0,82908.0,0.1206364]
[1741538249900,0.1206271,82915.0,82908.0,0.1206364]
[1741538250107,0.1206271,82915.0,82914.0,0.40569377]
[1741538250316,0.48641146,82915.0,82914.0,0.28506517]
[1741538250713,0.48641146,82915.0,82914.0,0.07727417]
[1741538250906,0.48641146,82915.0,82914.0,0.04560527]
[1741538251215,0.1206373,82908.0,82907.0,0.31592367]
[1741538251413,0.1206475,82901.0,82900.0,0.42759776]
[1741538251617,0.48748532,82901.0,82900.0,0.42759776]
[1741538251912,0.36683782,82901.0,82891.0,0.0603309]
[1741538252113,0.1809941,82893.0,82892.0,0.1206545]
[1741538252319,0.06636842,82893.0,82881.0,0.164338]
[1741538252511,0.1206635,82890.0,82881.0,0.164338]
[1741538252712,0.12670132,82890.0,82883.0,0.00018091]
[1741538252906,0.13975401,82890.0,82885.0,0.12067]
[1741538253109,0.1206722,82884.0,82883.0,0.00018091]
[1741538253421,0.60727002,82884.0,82883.0,0.00018091]
[1741538253623,0.120678,82880.0,82879.0,0.29487628]
[1741538253918,0.1206868,82874.0,82873.0,0.31182146]
[1741538254115,0.1207043,82862.0,82861.0,0.39341466]
[1741538254312,0.60762212,82862.0,82861.0,0.32262666]
[1741538254519,0.60762212,82862.0,82855.0,0.00064]
[1741538254520,0.120713,82856.0,82855.0,0.00064]
[1741538254818,0.1207174,82853.0,82852.0,0.43026407]
[1741538255025,0.25442703,82853.0,82852.0,0.43026407]
[1741538255318,0.40442703,82853.0,82852.0,0.43026407]
[1741538255507,0.24687522,82853.0,82852.0,0.43026407]
[1741538255714,0.39687522,82853.0,82852.0,0.15036597]
[1741538255916,0.1207363,82840.0,82839.0,0.20756168]
[1741538256220,0.60745898,82840.0,82839.0,0.20756168]
[1741538256621,0.62806487,82840.0,82839.0,0.20756168]
[1741538257119,0.77806509,82840.0,82832.0,0.51678263]
[1741538257424,0.4815465,82833.0,82832.0,0.25967343]
[1741538257610,0.0603758,82830.0,82825.0,0.40487402]
[1741538257814,0.3608,82826.0,82819.0,0.71619431]
[1741538258119,0.1207873,82805.0,82804.0,0.1097]
[1741538258323,0.1343834,82805.0,82800.0,0.06240007]
[1741538258515,0.1207932,82801.0,82800.0,0.06240007]
[1741538258711,0.4951893,82801.0,82800.0,0.06240007]
[1741538258921,0.1343893,82801.0,82800.0,0.06240007]
[1741538259218,0.14744199,82801.0,82800.0,0.06240007]
[1741538259420,0.65824199,82801.0,82800.0,0.06240007]
[1741538259609,0.1208209,82782.0,82781.0,0.1013]
[1741538259812,0.134417,82782.0,82781.0,0.1013]
[1741538260014,0.13442476,82782.0,82781.0,0.1013]
[1741538260322,0.1208224,82781.0,82780.0,0.2233644]
[1741538260523,0.1208224,82781.0,82780.0,0.17045672]
[1741538260524,0.35774919,82781.0,82780.0,0.17045672]
[1741538261117,0.52835934,82781.0,82780.0,0.17045672]
[1741538261317,0.52835934,82781.0,82780.0,0.13265887]
[1741538261518,0.36703641,82781.0,82780.0,0.13265887]
[1741538261818,0.52835934,82781.0,82780.0,0.06461904]
[1741538262020,0.37835934,82781.0,82780.0,0.06461904]
[1741538262221,0.37835934,82781.0,82780.0,0.1208238]
[1741538262222,0.25753694,82781.0,82780.0,0.1208238]
[1741538262419,0.15483694,82781.0,82780.0,0.1208238]
[1741538262616,0.14351401,82781.0,82780.0,0.1208238]
[1741538262813,0.14351401,82781.0,82780.0,0.4816238]
[1741538263017,0.03421401,82781.0,82780.0,0.4816238]
[1741538263417,0.03421401,82781.0,82780.0,0.1208238]
[1741538263623,0.03421401,82781.0,82780.0,0.2312238]
[1741538263815,0.03421401,82781.0,82780.0,0.1104]
[1741538263816,0.51583641,82781.0,82780.0,0.1104]
[1741538264018,0.39501401,82781.0,82753.0,0.1042]
[1741538264217,0.39501401,82781.0,82761.0,0.1104]
[1741538264218,0.1208501,82762.0,82761.0,0.1104]
[1741538264419,0.01360386,82762.0,82761.0,0.1104]
[1741538264617,0.39501401,82762.0,82748.0,0.0094]
[1741538264818,0.13971401,82761.0,82760.0,0.120853]
[1741538265019,0.13971401,82761.0,82755.0,0.0604296]
[1741538265217,0.01360386,82760.0,82759.0,0.1208545]
[1741538265417,0.1208619,82757.0,82756.0,0.1208587]
[1741538265619,0.13446576,82757.0,82756.0,0.1208587]
[1741538265826,0.13446126,82757.0,82756.0,0.1208587]
[1741538266123,0.13446126,82757.0,82740.0,0.3608]
[1741538266124,0.1208808,82741.0,82740.0,0.3608]
[1741538266330,0.01360386,82741.0,82740.0,0.1208822]
[1741538266519,0.01360386,82741.0,82724.0,0.11]
[1741538266719,0.01360386,82740.0,82724.0,0.11]
[1741538266921,0.1208906,82737.0,82736.0,0.1208852]
[1741538267117,0.01360386,82737.0,82724.0,0.11]
[1741538267319,0.07405584,82736.0,82729.0,0.0604486]
[1741538267518,0.1208859,82738.0,82724.0,0.11]
[1741538267732,0.3608,82738.0,82727.0,0.1209]
[1741538267924,0.0604475,82732.0,82727.0,0.1209]
[1741538268123,0.02061015,82735.0,82728.0,0.1088]
[1741538268318,0.02061015,82735.0,82734.0,0.120891]
[1741538268527,0.14149965,82735.0,82734.0,0.120891]
[1741538268829,0.14149965,82735.0,82730.0,0.3608]
[1741538268830,0.1043,82747.0,82730.0,0.3608]
[1741538269024,0.1209042,82725.0,82724.0,0.1088]
[1741538269219,0.1209004,82728.0,82707.0,0.0604652]
[1741538269420,0.1209207,82715.0,82714.0,0.1209193]
[1741538269727,0.0604497,82729.0,82714.0,0.10674357]
[1741538269728,0.1043,82729.0,82714.0,0.10674357]
[1741538269937,0.00018126,82723.0,82722.0,0.1209085]
[1741538270228,0.00105507,82728.0,82727.0,0.0604504]
[1741538270419,0.0166779,82738.0,82722.0,0.5108]
[1741538270420,0.0166779,82738.0,82737.0,0.1208866]
[1741538270619,0.00873581,82738.0,82737.0,0.4816866]
[1741538270826,0.00873581,82738.0,82737.0,0.1208866]
[1741538271227,0.05876386,82741.0,82740.0,0.1208822]
[1741538271430,0.13028262,82745.0,82744.0,0.1208764]
[1741538271628,0.0087358,82755.0,82754.0,0.1208618]
[1741538271824,0.0087358,82755.0,82750.0,0.0604336]
[1741538272129,0.0087358,82755.0,82754.0,0.1208618]
[1741538272322,0.0018136,82758.0,82757.0,0.1208574]
[1741538272522,0.3608,82769.0,82768.0,0.1208413]
[1741538272737,0.18888,82787.0,82768.0,0.3608]
[1741538272738,0.00181275,82782.0,82768.0,0.3608]
[1741538272925,0.00181275,82782.0,82766.0,0.01077266]
[1741538272926,0.00181275,82782.0,82781.0,0.1208224]
[1741538273431,0.28416772,82795.0,82794.0,0.1208034]
[1741538273627,0.1208191,82784.0,82783.0,0.1208165]
[1741538273925,0.1208191,82784.0,82753.0,0.3608]
[1741538273926,0.3608,82784.0,82773.0,0.19044]
[1741538274141,0.3608,82774.0,82773.0,0.19044]
[1741538274320,0.3608,82774.0,82764.0,0.19032]
[1741538274632,0.3608,82765.0,82763.0,0.1208475]
[1741538274827,0.3608,82765.0,82764.0,0.1208472]
[1741538275022,0.3608,82774.0,82764.0,0.1208472]
[1741538275023,0.3608,82774.0,82773.0,0.120834]
[1741538275230,0.3608,82775.0,82774.0,0.1208301]
[1741538275427,0.3608,82775.0,82774.0,0.1208326]
[1741538275619,0.00018126,82782.0,82781.0,0.1208224]
[1741538276024,0.00018126,82782.0,82765.0,0.0604222]
[1741538276225,0.1208359,82774.0,82773.0,0.1208297]
[1741538276528,0.1208428,82767.0,82766.0,0.1902]
[1741538276732,0.4816428,82767.0,82766.0,0.05715037]
[1741538277028,0.1208501,82762.0,82761.0,0.12103236]
[1741538277327,0.3608,82767.0,82761.0,0.00018126]
[1741538277528,0.3608,82767.0,82766.0,0.1208443]
[1741538277719,0.19016,82783.0,82773.0,0.120834]
[1741538277720,0.2219325,82775.0,82773.0,0.120834]
[1741538277919,0.1011,82775.0,82761.0,0.00018126]
[1741538278132,0.1011,82773.0,82770.0,0.1208355]
[1741538278330,0.1011,82786.0,82773.0,0.120834]
[1741538278531,0.3608,82783.0,82781.0,0.1208224]
[1741538278724,0.10496007,82785.0,82781.0,0.1208224]
[1741538279227,0.12100216,82782.0,82781.0,0.1208224]
[1741538279427,0.48180216,82782.0,82781.0,0.1208224]
[1741538279626,0.36098126,82782.0,82772.0,0.2497376]
[1741538279826,0.00018126,82782.0,82781.0,0.1208224]
[1741538280132,0.17493345,82798.0,82775.0,0.3608]
[1741538280432,0.3608,82793.0,82792.0,0.1208063]
[1741538280629,0.3608,82793.0,82792.0,0.3091263]
[1741538280933,0.14620005,82800.0,82795.0,0.0604006]
[1741538281126,0.00181198,82817.0,82816.0,0.1207713]
[1741538281430,0.2478232,82840.0,82839.0,0.1207378]
[1741538281624,0.1794524,82840.0,82839.0,0.1207378]
[1741538281821,0.18467072,82847.0,82846.0,0.1207276]
[1741538282027,0.1082,82861.0,82846.0,0.3608]
[1741538282222,0.00181126,82862.0,82861.0,0.1207057]
[1741538282726,0.1207072,82860.0,82859.0,0.18704]
[1741538282927,0.00181126,82862.0,82852.0,0.3608]
[1741538283130,0.1207276,82846.0,82844.0,0.18696]
[1741538283324,0.0603633,82847.0,82841.0,0.0603672]
[1741538283528,0.0603656,82844.0,82840.0,0.0094]
[1741538283745,0.0603685,82840.0,82836.0,0.36098102]
[1741538283934,0.1207407,82837.0,82820.0,0.3266598]
[1741538284128,0.1207502,82833.0,82832.0,0.1207452]
[1741538284330,0.0603553,82858.0,82843.0,0.1207319]
[1741538284529,0.3608,82859.0,82843.0,0.1207319]
[1741538284834,0.3608,82855.0,82842.0,0.4444]
[1741538285042,0.0987319,82843.0,82842.0,0.3608]
[1741538285335,0.1207626,82822.0,82821.0,0.3608]
[1741538285535,0.1207655,82820.0,82812.0,0.1063]
[1741538285738,0.2051,82821.0,82800.0,0.00064]
[1741538285928,0.4815932,82801.0,82793.0,0.1044]
[1741538286133,0.4816034,82794.0,82793.0,0.1044]
[1741538286434,0.4816034,82794.0,82792.0,0.21272]
[1741538286435,0.3608,82794.0,82792.0,0.21272]
[1741538286738,0.1208092,82790.0,82789.0,0.00018114]
[1741538287140,0.01269161,82790.0,82774.0,0.0836]
[1741538287435,0.5420514,82775.0,82774.0,0.1208293]
[1741538287634,0.120837,82771.0,82770.0,0.21272]
[1741538287833,0.1208399,82769.0,82768.0,0.1208409]
[1741538288032,0.01269161,82769.0,82760.0,0.33264606]
[1741538288234,1e-08,82769.0,82768.0,0.4816413]
[1741538288434,3e-08,82779.0,82768.0,0.5108]
[1741538288637,7e-08,82792.0,82791.0,0.1208078]
[1741538288827,0.3608,82813.0,82812.0,0.1207771]
[1741538289246,0.1014,82815.0,82814.0,0.1207742]
[1741538289628,0.1014,82815.0,82807.0,0.3608]
[1741538289834,0.0018122,82818.0,82817.0,0.1207698]
[1741538290238,0.0018122,82818.0,82799.0,0.18612]
[1741538290439,0.1207844,82807.0,82788.0,0.1408]
[1741538290631,0.0603931,82806.0,82799.0,0.120791]
[1741538290831,0.0603931,82806.0,82775.0,0.3608]
[1741538290832,0.1208314,82778.0,82777.0,0.1208247]
[1741538291033,0.1812344,82784.0,82783.0,0.1208138]
[1741538291338,0.1014,82797.0,82790.0,0.1208092]
[1741538291534,0.1014,82797.0,82796.0,0.1208005]
[1741538291729,0.1057,82806.0,82805.0,0.1207873]
[1741538292038,0.01992639,82832.0,82812.0,0.1207771]
[1741538292243,0.0603687,82840.0,82812.0,0.1207771]
[1741538292244,0.01992639,82841.0,82812.0,0.3608]
[1741538292542,0.0603729,82834.0,82831.0,0.0603742]
[1741538292741,0.18564,82848.0,82834.0,0.1207451]
[1741538292742,0.1016,82835.0,82834.0,0.1207451]
[1741538293037,0.36261129,82851.0,82835.0,0.1207436]
[1741538293435,0.1207494,82831.0,82830.0,0.00072]
[1741538293635,0.36098114,82844.0,82835.0,0.1207436]
[1741538293830,0.1207502,82831.0,82830.0,0.1207492]
[1741538294044,0.30843288,82837.0,82836.0,0.1207421]
[1741538294241,0.18733798,82837.0,82836.0,0.1207421]
[1741538294537,7e-08,82862.0,82861.0,0.1207057]
[1741538294743,7e-08,82862.0,82861.0,0.4815057]
[1741538295340,7e-08,82862.0,82848.0,0.0603618]
[1741538295341,0.36080007,82862.0,82848.0,0.0603618]
[1741538295532,0.36080007,82862.0,82841.0,0.0603673]
[1741538295533,0.0603536,82860.0,82852.0,0.3608]
[1741538295735,0.0603615,82850.0,82838.0,0.21268]
[1741538296039,0.1810872,82848.0,82847.0,0.00018102]
[1741538296246,0.2115,82849.0,82816.0,0.21268]
[1741538296454,0.1811281,82832.0,82831.0,0.1207441]
[1741538296636,0.1811496,82822.0,82821.0,0.1207602]
[1741538296840,0.0603839,82819.0,82814.0,0.36144]
[1741538297149,0.3608,82832.0,82800.0,0.39304296]
[1741538297150,0.0603849,82817.0,82800.0,0.33264606]
[1741538297442,0.4815815,82809.0,82808.0,0.00018102]
[1741538297639,0.4682,82816.0,82815.0,0.1207728]
[1741538297839,0.4682,82816.0,82808.0,0.00018102]
[1741538297840,0.1207815,82809.0,82808.0,0.00018102]
[1741538298039,0.3608,82809.0,82808.0,0.00018102]
[1741538298239,0.4815815,82809.0,82808.0,0.00018102]
[1741538298438,0.1208063,82795.0,82794.0,0.1208004]
[1741538298635,0.3608,82809.0,82792.0,0.3608]
[1741538298834,0.1208078,82791.0,82780.0,0.33264606]
[1741538299041,0.1208133,82789.0,82788.0,0.1208107]
[1741538299244,0.1208165,82785.0,82780.0,0.184]
[1741538299542,0.0604122,82781.0,82780.0,0.1208194]
[1741538299742,0.3608,82783.0,82774.0,0.00018114]
[1741538299941,0.1208302,82778.0,82777.0,0.2416468]
[1741538300141,4e-08,82791.0,82774.0,0.00018114]
[1741538300344,4e-08,82791.0,82790.0,0.4816092]
[1741538300531,0.3608,82819.0,82790.0,0.4816092]
[1741538300532,0.34980004,82819.0,82790.0,0.6658492]
[1741538300732,0.3608,82808.0,82790.0,0.33264606]
[1741538300943,0.1208194,82783.0,82782.0,0.27163623]
[1741538301142,0.3608,82808.0,82780.0,0.69344606]
[1741538301143,0.1208139,82788.0,82787.0,0.1208096]
[1741538301340,0.1208224,82781.0,82780.0,0.3608]
[1741538301533,0.1208224,82781.0,82776.0,0.0604143]
[1741538301534,0.00466009,82781.0,82776.0,0.0604143]
[1741538301733,0.00466009,82781.0,82772.0,0.21268]
[1741538301734,0.120834,82773.0,82772.0,0.21268]
[1741538301937,0.120834,82773.0,82770.0,0.00018114]
[1741538302144,0.120837,82771.0,82770.0,0.12101954]
[1741538302340,0.120837,82771.0,82770.0,0.00018114]
[1741538302739,0.1208273,82778.0,82776.0,0.1208297]
[1741538302934,0.1208349,82776.0,82775.0,0.1208283]
[1741538303141,0.00181259,82790.0,82774.0,0.3608]
[1741538303344,0.2086,82784.0,82775.0,0.1208291]
[1741538303545,0.2086,82784.0,82783.0,0.1208194]
[1741538303747,0.2086,82784.0,82783.0,0.4816194]
[1741538304043,0.3608,82805.0,82794.0,0.0604015]
[1741538304242,0.1208007,82799.0,82790.0,0.3608]
[1741538304440,0.1812001,82799.0,82798.0,0.1207936]
[1741538304641,0.1208078,82791.0,82790.0,0.6024121]
[1741538304837,0.1208078,82791.0,82790.0,0.2416121]
[1741538305142,0.1208151,82786.0,82785.0,0.0604079]
[1741538305349,0.0604029,82793.0,82792.0,0.1208063]
[1741538305647,0.00018114,82799.0,82798.0,0.1207976]
[1741538305842,0.00018114,82799.0,82790.0,0.3608]
[1741538306042,0.1208194,82783.0,82782.0,0.12100204]
[1741538306345,0.1208067,82792.0,82791.0,0.1208048]
[1741538306542,0.0604087,82786.0,82782.0,0.00018114]
[1741538306742,0.3608,82794.0,82782.0,0.00018114]
[1741538307045,0.1208194,82783.0,82782.0,0.00018114]
[1741538307343,0.1208194,82783.0,82751.0,0.06964407]
[1741538307344,0.3608,82783.0,82750.0,0.69344606]
[1741538307546,0.1208662,82751.0,82750.0,0.33340606]
[1741538307846,0.0604355,82749.0,82743.0,0.3608]
[1741538308153,0.2081,82750.0,82749.0,0.1208691]
[1741538308342,0.1208764,82745.0,82744.0,0.1208732]
[1741538308649,0.1208773,82745.0,82744.0,0.1208708]
[1741538309142,0.1208793,82742.0,82741.0,0.4816808]
[1741538309335,0.1049,82750.0,82749.0,0.1208691]
[1741538309841,0.3608,82764.0,82747.0,0.1208705]
[1741538310048,0.109,82763.0,82753.0,0.1208632]
[1741538310442,8e-08,82768.0,82753.0,0.3608]
[1741538310637,0.1054,82778.0,82777.0,0.1208282]
[1741538311046,0.1054,82778.0,82767.0,0.00064]
[1741538311047,0.1208413,82768.0,82767.0,0.00064]
[1741538311246,0.3608,82775.0,82757.0,0.3608]
[1741538311447,0.109,82774.0,82773.0,0.120834]
[1741538311638,0.120837,82771.0,82770.0,0.2416737]
[1741538311944,0.0604263,82761.0,82758.0,0.00018127]
[1741538312142,0.4816545,82759.0,82758.0,0.00018127]
[1741538312342,0.1813093,82748.0,82747.0,0.0604355]
[1741538312546,0.2282594,82758.0,82750.0,0.0604331]
[1741538312743,0.3608,82759.0,82758.0,0.1208559]
[1741538312943,0.1208647,82752.0,82751.0,0.3608]
[1741538313143,0.1208647,82752.0,82742.0,0.0604395]
[1741538313346,0.1813246,82742.0,82741.0,0.1208756]
[1741538313551,0.2182,82751.0,82749.0,0.1208676]
[1741538313764,0.2182,82751.0,82750.0,0.1208676]
[1741538313765,0.1077,82751.0,82750.0,0.1208676]
[1741538314048,7e-08,82757.0,82756.0,0.1208589]
[1741538314250,7e-08,82757.0,82756.0,0.4816589]
[1741538314446,7e-08,82757.0,82756.0,0.6316589]
[1741538314646,0.1077,82783.0,82756.0,0.66161533]
[1741538314853,0.0603917,82808.0,82794.0,0.1208034]
[1741538315055,0.17948124,82795.0,82794.0,0.1208034]
[1741538315256,0.17948124,82795.0,82794.0,0.4816034]
[1741538315552,0.17948124,82795.0,82794.0,0.8532157]
[1741538315755,0.17948124,82795.0,82794.0,0.9608157]
[1741538315946,0.17948124,82795.0,82794.0,0.5892034]
[1741538316264,0.1105,82817.0,82794.0,0.76902333]
[1741538316453,0.10401217,82825.0,82818.0,0.1207684]
[1741538316454,0.109,82819.0,82818.0,0.1207684]
[1741538316754,0.12078,82810.0,82809.0,0.18068]
[1741538316948,0.1017,82818.0,82807.0,0.33264606]
[1741538317149,0.1017,82818.0,82817.0,0.1207698]
[1741538317150,0.2224684,82818.0,82817.0,0.1207698]
[1741538317547,0.1017,82818.0,82815.0,0.3608]
[1741538317748,0.12078,82810.0,82809.0,0.00018115]
[1741538317951,0.060389,82812.0,82809.0,0.36098115]
[1741538318247,0.109,82811.0,82810.0,0.12078]
[1741538318947,0.109,82811.0,82809.0,0.36098115]
[1741538319148,0.12078,82810.0,82809.0,0.00018115]
[1741538319352,0.22678,82810.0,82809.0,0.00018115]
[1741538319544,0.1207932,82801.0,82800.0,0.1207937]
[1741538319749,0.1207946,82800.0,82799.0,0.3608]
[1741538319963,0.1208092,82790.0,82789.0,0.00916264]
[1741538320346,0.181243,82779.0,82778.0,0.1208258]
[1741538320653,0.1208297,82776.0,82775.0,0.3459537]
[1741538320852,0.2686133,82778.0,82777.0,0.1208282]
[1741538321060,0.1208297,82776.0,82775.0,0.2251267]
[1741538321353,0.1812543,82773.0,82772.0,0.1208291]
[1741538321546,0.1812543,82773.0,82770.0,0.33441665]
[1741538321547,0.120837,82771.0,82770.0,0.33441665]
[1741538321750,0.120837,82771.0,82770.0,0.12101665]
[1741538321951,0.120837,82771.0,82770.0,0.00018115]
[1741538322154,0.337737,82771.0,82770.0,0.12101955]
[1741538322354,0.1109,82771.0,82770.0,0.12101955]
[1741538322551,0.3608,82800.0,82786.0,0.1208151]
[1741538322752,0.1109,82798.0,82786.0,0.1208151]
[1741538322952,0.1207992,82797.0,82786.0,0.1208151]
[1741538323147,0.1208165,82785.0,82784.0,0.00072]
[1741538323347,0.0604112,82781.0,82768.0,0.177]
[1741538323659,0.120837,82771.0,82767.0,0.3608]
[1741538323849,0.1008413,82768.0,82767.0,0.1942]
[1741538324047,0.3608,82768.0,82750.0,0.61530606]
[1741538324250,0.0604247,82764.0,82760.0,0.0604264]
[1741538324450,0.1208632,82753.0,82750.0,0.61462606]
[1741538324650,0.1208632,82753.0,82752.0,0.40770942]
[1741538324851,0.3377618,82754.0,82753.0,0.0604316]
[1741538325052,0.3377618,82754.0,82752.0,0.28684472]
[1741538325053,0.36098126,82761.0,82752.0,0.28684472]
[1741538325252,0.3608,82779.0,82754.0,0.3608]
[1741538325458,0.1081,82775.0,82774.0,0.1208326]
[1741538325755,0.00072,82784.0,82783.0,0.1208194]
[1741538325958,0.1079,82790.0,82789.0,0.1208107]
[1741538326156,0.1079,82790.0,82783.0,0.1208165]
[1741538326157,0.0604076,82786.0,82783.0,0.1208165]
[1741538326352,0.1079,82785.0,82780.0,0.45346856]
[1741538326554,0.2287165,82785.0,82784.0,0.481618]
[1741538326856,0.36261303,82791.0,82781.0,0.1045]
[1741538327052,0.1081,82786.0,82780.0,0.33264606]
[1741538327249,0.1079,82785.0,82776.0,0.00018126]
[1741538327457,0.1208282,82777.0,82776.0,0.00018126]
[1741538327756,0.1208282,82777.0,82776.0,0.12101096]
[1741538327946,0.1208282,82777.0,82776.0,0.00018126]
[1741538328148,0.4816282,82777.0,82776.0,0.00018126]
[1741538328348,0.0604159,82775.0,82741.0,0.28684472]
[1741538328551,0.3608,82761.0,82760.0,0.45349906]
[1741538328769,0.3608,82769.0,82758.0,0.0604274]
[1741538328950,0.2311418,82768.0,82767.0,0.1208417]
[1741538329154,0.3608,82769.0,82767.0,0.1208417]
[1741538329348,0.3608,82769.0,82768.0,0.1812655]
[1741538329555,0.3608,82769.0,82760.0,0.06060546]
[1741538329753,0.3608,82769.0,82760.0,0.16240546]
[1741538330055,0.0604217,82767.0,82766.0,0.1208428]
[1741538330258,0.1103,82768.0,82761.0,0.0604242]
[1741538330462,0.1103,82768.0,82767.0,0.1208428]
[1741538330763,0.00018126,82776.0,82761.0,0.0604242]
[1741538331059,0.00018126,82776.0,82762.0,0.0604242]
[1741538331060,0.1208486,82763.0,82762.0,0.0604242]
[1741538331259,0.1208486,82763.0,82760.0,0.00018126]
[1741538331462,0.4816516,82761.0,82760.0,0.00018126]
[1741538331660,0.3608,82761.0,82738.0,0.38816]
[1741538331856,0.1208733,82748.0,82747.0,0.1208697]
[1741538332058,0.2094,82760.0,82742.0,0.4212242]
[1741538332059,0.1208778,82743.0,82742.0,0.4212242]
[1741538332359,0.3608,82743.0,82728.0,0.3608]
[1741538332655,0.2094,82742.0,82728.0,0.3608]
[1741538332856,0.2094,82742.0,82727.0,0.00018126]
[1741538332857,0.0604454,82735.0,82727.0,0.00018126]
[1741538333059,0.1208998,82728.0,82727.0,0.00018126]
[1741538333252,0.1208998,82728.0,82725.0,0.28684472]
[1741538333253,0.1209027,82726.0,82725.0,0.28684472]
[1741538333856,0.2245027,82726.0,82725.0,0.28684472]
[1741538334358,0.2245027,82726.0,82725.0,0.34726892]
[1741538334553,0.5853027,82726.0,82725.0,0.28684472]
[1741538334957,0.1036,82726.0,82725.0,0.40774892]
[1741538335259,0.2245027,82726.0,82725.0,0.5421284]
[1741538335659,0.1036,82726.0,82725.0,0.0604242]
[1741538335855,0.2245027,82726.0,82725.0,0.0604242]
[1741538336057,0.1036,82726.0,82725.0,0.0604242]
[1741538336267,0.2245027,82726.0,82725.0,0.1813284]
[1741538336463,0.1209085,82722.0,82721.0,0.3608]
[1741538336658,0.0514563,82720.0,82717.0,0.00018126]
[1741538336857,0.1209144,82718.0,82717.0,0.00018126]
[1741538337259,0.3331144,82718.0,82717.0,0.00018126]
[1741538337450,0.3331144,82718.0,82717.0,0.18152126]
[1741538337863,0.2270144,82718.0,82717.0,0.06060546]
[1741538338060,0.2270144,82718.0,82717.0,0.00018126]
[1741538338254,0.1209392,82701.0,82700.0,0.42298135]
[1741538338459,0.1209553,82690.0,82683.0,0.3608]
[1741538338753,0.1209553,82690.0,82689.0,0.4817568]
[1741538338959,0.1209553,82690.0,82689.0,0.542181]
[1741538339253,0.1035,82691.0,82689.0,0.4212242]
[1741538339563,0.172,82697.0,82696.0,0.1209466]
[1741538339762,0.1106,82697.0,82696.0,0.4817466]
[1741538340064,0.2315451,82697.0,82696.0,0.5421708]
[1741538340258,0.0018146,82718.0,82697.0,0.0604242]
[1741538340567,0.1209188,82715.0,82714.0,0.3608]
[1741538340864,0.3406158,82717.0,82716.0,0.1209173]
[1741538341062,0.1209173,82716.0,82715.0,0.0604242]
[1741538341266,0.1209173,82716.0,82715.0,0.1209188]
[1741538341564,0.3608,82751.0,82716.0,0.0604242]
[1741538341752,0.3608,82751.0,82714.0,0.3608]
[1741538341753,0.1208968,82730.0,82729.0,0.3608]
[1741538342158,0.15,82730.0,82706.0,0.3608]
[1741538342368,0.1209451,82697.0,82696.0,0.3608]
[1741538342553,0.1209451,82697.0,82684.0,0.14141533]
[1741538342554,0.1209656,82683.0,82678.0,0.3609]
[1741538342970,0.1209656,82683.0,82682.0,0.4212242]
[1741538343559,0.1717811,82686.0,82682.0,0.4212242]
[1741538343761,0.3608,82704.0,82694.0,0.1209495]
[1741538343955,0.3608,82704.0,82682.0,0.3608]
[1741538344165,0.1209714,82679.0,82678.0,0.0001]
[1741538344360,0.60082,82679.0,82643.0,0.35730932]
[1741538344661,0.12103,82639.0,82638.0,1e-08]
[1741538344964,0.3608,82639.0,82638.0,0.12103141]
[1741538345166,0.99263,82639.0,82638.0,1e-08]
[1741538345571,0.7216,82639.0,82638.0,0.12103141]
[1741538345771,0.63183,82639.0,82638.0,1e-08]
[1741538345969,0.7216,82639.0,82638.0,0.12103141]
[1741538346267,0.00018151,82647.0,82642.0,0.0605123]
[1741538346463,0.3608,82669.0,82660.0,0.1209992]
[1741538346660,0.3608,82675.0,82659.0,0.1094]
[1741538346863,0.3608,82675.0,82674.0,0.1209787]
[1741538347170,0.21262706,82689.0,82688.0,0.1209583]
[1741538347362,0.21262706,82689.0,82675.0,0.0604882]
[1741538347363,0.3608,82709.0,82685.0,0.3608]
[1741538347567,0.3608,82702.0,82686.0,0.1094]
[1741538347866,0.3608,82690.0,82686.0,0.1094]
[1741538348171,0.17284,82689.0,82686.0,0.0604242]
[1741538348369,0.3608,82687.0,82684.0,0.0001814]
[1741538348558,0.1209626,82685.0,82684.0,1e-07]
[1741538348757,0.1209626,82685.0,82649.0,0.0605074]
[1741538348758,0.1210183,82647.0,82646.0,0.3608]
[1741538348962,0.0605062,82651.0,82637.0,0.1094]
[1741538349261,0.0605062,82651.0,82596.0,0.3608]
[1741538349262,0.7216,82638.0,82596.0,0.3608]
[1741538349461,0.1210857,82601.0,82596.0,0.3608]